fUSD/lending_fUSD_20240419
["ID","MTS","AMOUNT","RATE_DAILY","PERIOD"]
[322895471,1713485149614,-200.17103401,0.0001553,2]
[322895472,1713485149633,-409.14272162,0.00015531,2]
[322895473,1713485149652,-3390.68624437,0.00015532,2]
[322895474,1713485151698,-497.06132528,0.00015532,2]
[322895475,1713485151720,-523.66195964,0.0001563,2]
[322895476,1713485151739,-155.0,0.0001563,2]
[322895477,1713485151759,-348.53728979,0.0001563,2]
[322895478,1713485151778,-2475.73942529,0.0001563,2]
[322895479,1713485153715,-1128.90588117,0.0001563,2]
[322895480,1713485153748,-2871.09411883,0.0001563,2]
[322895481,1713485154382,1283.838096,0.00015452,2]
[322895482,1713485155647,-4000.0,0.0001563,2]
[322895483,1713485157622,-4000.0,0.0001563,2]
[322895484,1713485159425,-2313.65412509,0.0001563,2]
[322895485,1713485159445,-538.93739047,0.0001563,2]
[322895486,1713485159467,-1147.40848444,0.0001563,2]
[322895487,1713485162086,-3172.67992434,0.0001563,2]
[322895488,1713485162106,-231.23229162,0.0001563,2]
[322895489,1713485162125,-532.81402985,0.0001563,2]
[322895490,1713485162146,-63.27375419,0.00015631,2]
[322895491,1713485166511,-200.05247691,0.0001563,2]
[322895492,1713485166532,-341.39988659,0.00015631,2]
[322895493,1713485166554,-3458.5476365,0.00015631,2]
[322895494,1713485248029,507.52,0.00013583,2]
[322895495,1713485253884,1261.1297,0.00015431,2]
[322895497,1713485286484,327.63343049,0.00015373,2]
[322895498,1713485300095,2736.0608222,0.00015431,2]
[322895499,1713485306182,2736.06082216,0.00015445,2]
[322895501,1713485310492,2736.06082216,0.0001546,2]
[322895502,1713485314310,1015.11,0.00015086,2]
[322895503,1713485321449,2736.06082216,0.00015474,2]
[322895505,1713485325364,2736.06082216,0.00015489,2]
[322895506,1713485334999,-400.0,0.00015503,2]
[322895512,1713485359789,305.12478277,0.00015502,2]
[322895517,1713485368815,4580.47525685,0.00015502,2]
[322895518,1713485369531,405.4757218,0.00015502,2]
[322895519,1713485370505,467.07549417,0.00015502,2]
[322895520,1713485370842,300.0,0.00015,5]
[322895521,1713485373772,236.59678776,0.00015502,2]
[322895522,1713485373887,600.0,0.000151,5]
[322895523,1713485374622,162.02270693,0.00015502,2]
[322895524,1713485375208,683.74835302,0.00015502,2]
[322895526,1713485375738,900.0,0.000152,5]
[322895527,1713485375989,155.0,0.00015502,2]
[322895528,1713485377186,1300.0,0.000153,5]
[322895529,1713485378291,2358.50142136,0.00015502,2]
[322895530,1713485378775,426.91985436,0.00015502,2]
[322895531,1713485379264,1600.0,0.000154,5]
[322895532,1713485381365,300.0,0.000155,5]
[322895533,1713485383183,155.0,0.00015099,2]
[322895539,1713485400690,408.17868454,0.00015502,2]
[322895541,1713485422831,167.25765236,0.00015502,2]
[322895542,1713485426469,305.12478277,0.00015502,2]
[322895543,1713485431061,444.13902591,0.00015502,2]
[322895563,1713485432592,-442.49824165,0.00015503,2]
[322895564,1713485432603,-716.59388063,0.00015503,2]
[322895565,1713485432614,-1176.96869988,0.00015503,2]
[322895566,1713485432623,-1480.11161362,0.00015518,2]
[322895578,1713485438413,-711.47935316,0.00015518,2]
[322895579,1713485438425,-544.46985538,0.00015518,2]
[322895580,1713485438435,-155.23436945,0.00015528,2]
[322895581,1713485438446,-201.42556109,0.00015528,2]
[322895582,1713485438455,-164.48376272,0.00015528,2]
[322895583,1713485438465,-3157.72385316,0.00015529,4]
[322895585,1713485438560,-320.0,0.00015529,4]
[322895586,1713485438625,-2112.11408089,0.00015529,4]
[322895587,1713485438636,-26361.14609022,0.00015529,4]
[322895589,1713485438645,-1000.0,0.00015529,2]
[322895591,1713485438655,-655.2559921,0.00015531,2]
[322895593,1713485438664,-344.33076054,0.00015532,2]
[322895595,1713485438674,-2736.06082216,0.00015532,2]
[322895596,1713485438683,-499.99,0.00015532,2]
[322895597,1713485438694,-3223.69200909,0.00015532,2]
[322895598,1713485438704,-1112.81046441,0.00015532,2]
[322895599,1713485438713,-1641.64398433,0.00015532,2]
[322895600,1713485438722,-385.9841721,0.00015532,2]
[322895601,1713485438731,-177.34031894,0.00015532,2]
[322895602,1713485438740,-1000.0,0.00015532,2]
[322895603,1713485438749,-1195.81,0.00015571,2]
[322895604,1713485438758,-500.0,0.00015591,2]
[322895605,1713485438767,-500.0,0.000156,2]
[322895606,1713485438777,-300.0,0.000156,5]
[322895607,1713485438786,-1039.10867807,0.00015613,2]
[322895608,1713485438795,-151.83,0.00015618,2]
[322895609,1713485438804,-283.31426977,0.00015618,2]
[322895610,1713485438814,-552.32195113,0.00015619,2]
[322895611,1713485438824,-151.83,0.0001562,2]
[322895612,1713485438833,-704.6,0.00015621,3]
[322895613,1713485438843,-151.83,0.00015622,2]
[322895614,1713485438852,-151.83,0.00015622,2]
[322895615,1713485438861,-151.83,0.00015622,2]
[322895616,1713485438871,-151.83,0.00015622,2]
[322895617,1713485438884,-151.83,0.00015622,2]
[322895618,1713485438894,-151.83,0.00015622,2]
[322895619,1713485438904,-151.83,0.00015622,2]
[322895620,1713485438913,-151.83,0.00015622,2]
[322895621,1713485438923,-151.83,0.00015622,2]
[322895622,1713485438933,-151.83,0.00015622,2]
[322895623,1713485438944,-155.0,0.00015626,2]
[322895624,1713485438956,-249.59914331,0.00015626,2]
[322895625,1713485438967,-408.04988804,0.00015626,2]
[322895626,1713485438976,-161.40899078,0.00015627,2]
[322895627,1713485438985,-258.2923,0.00015627,2]
[322895628,1713485438995,-309.11591838,0.00015627,2]
[322895629,1713485439004,-236.01814319,0.00015627,2]
[322895630,1713485439014,-687.84001768,0.00015627,2]
[322895631,1713485439023,-770.07439636,0.00015627,2]
[322895632,1713485439032,-685229.89061217,0.00015628,2]
[322895633,1713485439042,-208.96057669,0.00015629,2]
[322895634,1713485439051,-545891.60744439,0.00015629,2]
[322895635,1713485439061,-571.01966468,0.00015629,7]
[322895636,1713485439070,-267.09258882,0.00015629,2]
[322895637,1713485439079,-155.0,0.00015629,2]
[322895638,1713485439089,-201.77104575,0.00015629,2]
[322895639,1713485439098,-709.5115768,0.00015629,2]
[322895640,1713485439107,-194.27273769,0.00015629,2]
[322895641,1713485439116,-378.78784574,0.00015629,2]
[322895642,1713485439126,-155.0,0.00015629,2]
[322895643,1713485439135,-408.81570655,0.00015629,2]
[322895644,1713485439144,-155.0,0.00015629,2]
[322895645,1713485439154,-155.0,0.00015629,2]
[322895646,1713485439163,-200.17103401,0.00015629,2]
[322895647,1713485439173,-300.20034812,0.00015629,2]
[322895648,1713485439182,-155.0,0.00015629,2]
[322895649,1713485439193,-155.0,0.00015629,2]
[322895650,1713485439202,-313.58324232,0.00015629,2]
[322895651,1713485439211,-712.16436581,0.00015629,2]
[322895652,1713485439221,-361.69441178,0.00015629,2]
[322895653,1713485439230,-155.0,0.00015629,2]
[322895654,1713485439240,-155.0,0.00015629,2]
[322895655,1713485439249,-839.64535407,0.00015629,2]
[322895656,1713485439259,-453.91280758,0.00015629,2]
[322895657,1713485439268,-537.29485027,0.00015629,2]
[322895658,1713485439278,-164.40528699,0.00015629,2]
[322895659,1713485439287,-206.64354997,0.00015629,2]
[322895660,1713485439296,-348.58580176,0.0001563,2]
[322895661,1713485439305,-160.48558962,0.0001563,2]
[322895662,1713485439314,-271.59951734,0.0001563,2]
[322895663,1713485439323,-245.68915645,0.0001563,2]
[322895664,1713485439333,-30434.44247912,0.0001563,2]
[322895665,1713485439342,-263.42881071,0.0001563,2]
[322895666,1713485439351,-156.59106703,0.0001563,2]
[322895667,1713485439361,-204.72895838,0.0001563,2]
[322895668,1713485439370,-4401.60261938,0.0001563,2]
[322895669,1713485439379,-308.27305272,0.0001563,2]
[322895670,1713485439388,-155.67107352,0.0001563,2]
[322895671,1713485439398,-155.39161747,0.0001563,2]
[322895672,1713485439407,-194.01529019,0.00015631,2]
[322895673,1713485439416,-3026.30106579,0.00015631,2]
[322895674,1713485439427,-277.78803159,0.00015631,2]
[322895675,1713485439437,-211.80798569,0.00015631,2]
[322895676,1713485439447,-667.83878368,0.00015631,3]
[322895677,1713485439456,-5574678.89503282,0.00015632,2]
[322895678,1713485439469,-18178529.9329404,0.00015632,2]
[322895679,1713485439480,-1155191.26299815,0.00015632,2]
[322895706,1713485441794,487.02239247,0.00015502,2]
[322895707,1713485441856,-0.00418055,0.00015626,2]
[322895708,1713485441973,-167.25347181,0.00015626,2]
[322895709,1713485441983,-304.56535885,0.00015626,2]
[322895710,1713485441995,-234.51415908,0.00015632,2]
[322895711,1713485442009,-378.26446348,0.00015632,2]
[322895712,1713485442023,-492.51234959,0.00015632,2]
[322895713,1713485442057,-8105.91167332,0.00015632,2]
[322895714,1713485442070,-2959.64473179,0.00015632,2]
[322895715,1713485442090,-2536.10208,0.00015632,2]
[322895716,1713485442125,-8559.79196554,0.00015632,2]
[322895717,1713485442136,-8947.21879473,0.00015632,2]
[322895718,1713485442148,-8943.78386462,0.00015632,2]
[322895719,1713485442161,-9077.54866152,0.00015632,2]
[322895720,1713485442173,-8943.84023489,0.00015632,2]
[322895736,1713485443301,-890.79545521,0.00015632,2]
[322895737,1713485443434,-500.0,0.00015632,2]
[322895739,1713485449132,-8982032.32704134,0.00015632,2]
[322895740,1713485449141,-3783686.01,0.00015632,2]
[322895741,1713485449150,-294.19,0.00015665,2]
[322895742,1713485449160,-300.0,0.000157,5]
[322895743,1713485449169,-250.0,0.00015719,2]
[322895744,1713485449178,-800.0,0.00015735,2]
[322895745,1713485449188,-300.0,0.000158,5]
[322895746,1713485449197,-167.18,0.00015831,2]
[322895747,1713485449207,-507.52,0.00015846,2]
[322895748,1713485449216,-612.0,0.000159,5]
[322895749,1713485449226,-1250.0,0.00016,2]
[322895750,1713485449235,-909.21,0.00016,2]
[322895751,1713485449245,-521.64,0.00016082,2]
[322895752,1713485449254,-521.64,0.00016082,2]
[322895753,1713485449263,-521.64,0.00016082,2]
[322895754,1713485449273,-521.64,0.00016082,2]
[322895755,1713485449282,-800.0,0.00016164,2]
[322895756,1713485449291,-206.453435,0.00016164,2]
[322895757,1713485449301,-516.18,0.00016178,2]
[322895758,1713485449310,-150.0,0.000162,2]
[322895759,1713485449320,-150.0,0.000162,2]
[322895760,1713485449329,-150.0,0.000162,2]
[322895761,1713485449338,-150.0,0.000162,2]
[322895762,1713485449347,-150.0,0.000162,2]
[322895763,1713485449356,-150.0,0.000162,2]
[322895764,1713485449365,-150.0,0.000162,2]
[322895765,1713485449375,-821.1,0.000162,2]
[322895766,1713485449384,-909.21,0.000162,2]
[322895767,1713485449393,-521.64,0.000162,2]
[322895768,1713485449402,-150.0,0.000162,2]
[322895769,1713485449412,-521.64,0.00016278,2]
[322895770,1713485449421,-350.16,0.00016278,2]
[322895771,1713485449430,-350.16,0.00016278,2]
[322895772,1713485449439,-350.16,0.00016278,2]
[322895773,1713485449450,-350.16,0.00016278,2]
[322895774,1713485449459,-350.16,0.00016278,2]
[322895775,1713485449468,-350.16,0.00016278,2]
[322895776,1713485449478,-167.35,0.00016308,2]
[322895777,1713485449487,-350.16,0.00016378,2]
[322895778,1713485449496,-350.16,0.00016378,2]
[322895779,1713485449506,-521.64,0.000164,2]
[322895780,1713485449515,-412.89,0.000164,2]
[322895781,1713485449524,-769.43,0.000164,2]
[322895782,1713485449533,-909.21,0.000164,2]
[322895783,1713485449542,-4213.98,0.00016438,2]
[322895784,1713485449551,-4213.98,0.00016438,2]
[322895785,1713485449561,-4213.98,0.00016438,2]
[322895786,1713485449571,-4213.98,0.00016438,2]
[322895787,1713485449580,-4213.98,0.00016438,2]
[322895788,1713485449589,-4213.98,0.00016438,2]
[322895789,1713485449598,-4213.98,0.00016438,2]
[322895790,1713485449607,-4213.98,0.00016438,2]
[322895791,1713485449617,-4213.98,0.00016438,2]
[322895792,1713485449627,-4213.98,0.00016438,2]
[322895793,1713485449636,-4213.98,0.00016438,2]
[322895794,1713485449646,-4213.98,0.00016438,2]
[322895795,1713485449655,-4213.98,0.00016438,2]
[322895796,1713485449665,-4213.98,0.00016438,2]
[322895797,1713485449674,-4213.98,0.00016438,2]
[322895798,1713485449684,-4213.98,0.00016438,2]
[322895799,1713485449693,-4213.98,0.00016438,2]
[322895800,1713485449708,-4213.98,0.00016438,2]
[322895801,1713485449718,-4213.98,0.00016438,2]
[322895802,1713485449727,-4213.98,0.00016438,2]
[322895803,1713485449736,-4213.98,0.00016438,2]
[322895804,1713485449746,-4213.98,0.00016438,2]
[322895805,1713485449755,-4213.98,0.00016438,2]
[322895806,1713485449764,-4213.98898987,0.00016438,2]
[322895807,1713485449773,-6209.43,0.00016438,2]
[322895808,1713485449784,-6209.43,0.00016438,2]
[322895809,1713485449794,-6209.43,0.00016438,2]
[322895810,1713485449803,-6209.43,0.00016438,2]
[322895811,1713485449812,-6209.43,0.00016438,2]
[322895812,1713485449822,-6209.43,0.00016438,2]
[322895813,1713485449832,-6209.43,0.00016438,2]
[322895814,1713485449842,-6209.43,0.00016438,2]
[322895815,1713485449851,-6209.43,0.00016438,2]
[322895816,1713485449860,-6209.43,0.00016438,2]
[322895817,1713485449869,-6209.43,0.00016438,2]
[322895818,1713485449880,-6209.43,0.00016438,2]
[322895819,1713485449889,-6209.43,0.00016438,2]
[322895820,1713485449898,-6209.43,0.00016438,2]
[322895821,1713485449908,-6209.43,0.00016438,2]
[322895822,1713485449917,-6209.43,0.00016438,2]
[322895823,1713485449926,-6209.43,0.00016438,2]
[322895824,1713485449935,-4362.23444553,0.00016438,2]
[322895825,1713485453898,-417.11,0.00015582,2]
[322895826,1713485453909,-82.89,0.00015582,2]
[322895827,1713485453918,-200.94919368,0.00016082,2]
[322895828,1713485453952,-1045.0534,0.00015531,2]
[322895829,1713485453962,-839.39080632,0.00016082,2]
[322895830,1713485453972,-350.16,0.00016278,2]
[322895831,1713485453981,-1847.19555447,0.00016438,2]
[322895832,1713485453989,-6209.43,0.00016438,2]
[322895833,1713485453999,-6209.43,0.00016438,2]
[322895834,1713485454008,-6209.43,0.00016438,2]
[322895835,1713485454016,-3426.14344264,0.00016438,2]
[322895836,1713485454238,-336.955,0.00016438,2]
[322895837,1713485454356,-0.04361958,0.00016438,2]
[322895838,1713485455033,200.0,0.00014636,2]
[322895840,1713485480886,23900.0,0.00014653,2]
[322895841,1713485501487,300.0,0.000154,5]
[322895842,1713485503510,700.0,0.000155,5]
[322895843,1713485526780,257.95697581,0.000155,2]
[322895845,1713485541310,161.52,0.00015359,2]
[322895846,1713485544996,237.05774838,0.000155,2]
[322895849,1713485566361,169.37,0.00015362,2]
[322895852,1713485587556,154.74,0.00015337,2]
[322895853,1713485587671,154.74,0.00015352,2]
[322895854,1713485587775,154.74,0.00015368,2]
[322895855,1713485588378,154.74,0.00015383,2]
[322895856,1713485588473,154.74,0.00015398,2]
[322895857,1713485588586,154.74,0.00015414,2]
[322895858,1713485597215,250.0,0.00015292,2]
[322895861,1713485646719,166.1,0.00015396,2]
[322895863,1713485736594,486.09,0.00013215,2]
[322895864,1713485736621,73.91,0.00013215,2]
[322895865,1713485736803,560.0,0.00015478,2]
[322895866,1713485779959,262.71,0.00015126,2]
[322895867,1713485822306,646.34,0.00015088,2]
[322895868,1713485840769,2076.37,0.00015119,2]
[322895869,1713485842366,8114.3662607,0.00028208,120]
[322895870,1713485851183,150.0,0.00015119,2]
[322895871,1713485922352,1793.19,0.00015171,2]
[322895872,1713485927017,200.0,0.00015171,2]
[322895873,1713485972968,10000.0,0.00028208,120]
[322895874,1713486014702,166.58,0.00015181,2]
[322895875,1713486022802,840.0,0.00015198,2]
[322895876,1713486027667,10036.09739113,0.00024333,30]
[322895877,1713486042956,2078.3,0.00015199,2]
[322895878,1713486053513,159.80423538,0.00015427,2]
[322895880,1713486215867,166.1,0.00015199,2]
[322895881,1713486215982,166.1,0.00015463,2]
[322895882,1713486271295,576.74,0.0001323,2]
[322895883,1713486271425,576.74,0.00015494,2]
[322895884,1713486407366,1383.91,0.00015208,2]
[322895885,1713486432418,400.0,0.00015,5]
[322895886,1713486434529,800.0,0.000151,5]
[322895887,1713486436636,1200.0,0.000152,5]
[322895888,1713486439452,1600.0,0.000153,5]
[322895889,1713486440935,2100.0,0.000154,5]
[322895890,1713486443034,400.0,0.000155,5]
[322895892,1713486619176,328.0,0.00015063,2]
[322895905,1713486632422,-155.0,0.00015525,2]
[322895906,1713486632432,-449.556772,0.00015526,2]
[322895907,1713486632441,-108.243228,0.00015527,2]
[322895908,1713486632534,-297.90292434,0.00015527,2]
[322895909,1713486632545,-211.54384667,0.00015527,2]
[322895910,1713486632556,-1246.13615333,0.00015527,2]
[322895911,1713486632619,-1723.49402903,0.00015527,2]
[322895912,1713486632631,-387.1825779,0.00015527,2]
[322895913,1713486632643,-168262.24683974,0.00015527,2]
[322895914,1713486632653,-1435.975,0.00015527,2]
[322895915,1713486632663,-3358.9298,0.00015527,2]
[322895916,1713486632673,-3288.708,0.00015527,2]
[322895917,1713486632682,-5957.0554,0.00015528,2]
[322895918,1713486632692,-77735.84844245,0.00015528,2]
[322895919,1713486632712,-3189.83507936,0.00015528,2]
[322895920,1713486632724,-1592.358,0.00015528,2]
[322895932,1713486639726,-17481.95847819,0.00015528,2]
[322895933,1713486639739,-500.0,0.00015565,2]
[322895934,1713486639749,-188.77485612,0.00015574,2]
[322895935,1713486639851,-311.22514388,0.00015574,2]
[322895936,1713486639861,-400.0,0.000156,5]
[322895937,1713486639870,-2647.3152155,0.00015614,2]
[322895938,1713486639879,-479.09769034,0.00015626,2]
[322895939,1713486639889,-100819.15565983,0.00015627,2]
[322895940,1713486639898,-486.33746817,0.00015628,2]
[322895941,1713486639907,-374.22,0.00015628,2]
[322895942,1713486639917,-499.99,0.00015628,2]
[322895943,1713486639927,-10773.63,0.00015628,2]
[322895944,1713486639936,-155.0,0.0001563,2]
[322895945,1713486639947,-166.42861037,0.0001563,2]
[322895946,1713486639956,-214.12274356,0.0001563,2]
[322895947,1713486639965,-2937.19,0.0001563,2]
[322895948,1713486639974,-165.55205458,0.00015631,2]
[322895949,1713486639986,-155.0,0.00015631,2]
[322895950,1713486639996,-400.0,0.000157,5]
[322895951,1713486640005,-166.1,0.00015727,2]
[322895952,1713486640015,-521.64,0.000158,2]
[322895953,1713486640025,-150.0,0.000158,2]
[322895954,1713486640036,-400.0,0.000158,5]
[322895955,1713486640046,-350.16,0.000158,2]
[322895956,1713486640055,-350.16,0.000158,2]
[322895957,1713486640064,-350.16,0.000158,2]
[322895958,1713486640074,-350.16,0.000158,2]
[322895959,1713486640085,-323.43,0.000158,2]
[322895960,1713486640095,-117542.06,0.00015898,6]
[322895961,1713486640105,-10808.06,0.00015898,6]
[322895962,1713486640115,-16357.9,0.00015899,6]
[322895963,1713486640124,-5577.21,0.00015899,6]
[322895964,1713486640134,-62196.8,0.00015899,6]
[322895965,1713486640144,-721.0,0.000159,5]
[322895966,1713486640153,-200.04259109,0.00016081,2]
[322895967,1713486640162,-185.808092,0.00016164,2]
[322895968,1713486640172,-909.21,0.00016219,2]
[322895969,1713486640181,-909.21,0.00016219,2]
[322895970,1713486640191,-909.21,0.00016219,2]
[322895971,1713486640200,-1873.3,0.000163,2]
[322895973,1713486640209,-412.63,0.000163,2]
[322895974,1713486640219,-909.21,0.000163,2]
[322895976,1713486640229,-699.99,0.000163,2]
[322895978,1713486640239,-613.64311,0.0001632,2]
[322895980,1713486640249,-154.94,0.00016328,2]
[322895982,1713486640259,-189.91857939,0.00016328,2]
[322895984,1713486640268,-150.0,0.00016333,2]
[322895986,1713486640277,-1274.7986259,0.00016336,2]
[322895988,1713486640287,-177.8414152,0.00016336,2]
[322895990,1713486640296,-1274.79862589,0.00016337,2]
[322895992,1713486640306,-177.84141517,0.00016337,2]
[322895994,1713486640317,-1274.79862589,0.00016337,2]
[322895996,1713486640328,-177.84141517,0.00016337,2]
[322895998,1713486640337,-1274.79862589,0.00016338,2]
[322895999,1713486640347,-206.86865436,0.00016338,2]
[322896001,1713486640357,-290013.31018243,0.00016338,2]
[322896003,1713486640366,-180.28720509,0.00016338,2]
[322896005,1713486640376,-1274.79862589,0.00016338,2]
[322896007,1713486640386,-177.84141517,0.00016338,2]
[322896009,1713486640395,-918.71370676,0.00016338,2]
[322896011,1713486640405,-175.73559832,0.00016338,2]
[322896013,1713486640414,-16802.5079,0.00016338,2]
[322896015,1713486640423,-7788.0124,0.00016338,2]
[322896017,1713486640433,-1000.0,0.00016338,2]
[322896019,1713486640442,-500.0,0.00016338,2]
[322896021,1713486640451,-500.0,0.00016347,2]
[322896023,1713486640460,-150.0,0.00016354,2]
[322896025,1713486640469,-500.0,0.00016356,2]
[322896026,1713486640479,-5800.0,0.00016358,2]
[322896028,1713486640489,-500.0,0.00016365,2]
[322896030,1713486640498,-5800.0,0.00016366,2]
[322896032,1713486640508,-500.0,0.00016374,2]
[322896034,1713486640517,-5800.0,0.00016375,2]
[322896036,1713486640526,-500.0,0.00016382,2]
[322896038,1713486640536,-5800.0,0.00016383,2]
[322896040,1713486640546,-500.0,0.00016391,2]
[322896041,1713486640555,-5800.0,0.00016392,2]
[322896042,1713486640564,-2104.0,0.000164,2]
[322896043,1713486640574,-5800.0,0.000164,2]
[322896044,1713486640583,-500.0,0.000164,2]
[322896045,1713486640593,-800.0,0.00016411,2]
[322896046,1713486640602,-800.0,0.00016411,2]
[322896047,1713486640611,-59130.17200039,0.00016421,2]
[322896048,1713486640620,-189.91857939,0.00016428,2]
[322896049,1713486640629,-157.041908,0.00016433,2]
[322896050,1713486640638,-157.041908,0.00016433,2]
[322896051,1713486640647,-157.041908,0.00016433,2]
[322896052,1713486640657,-157.041908,0.00016433,2]
[322896053,1713486640665,-156.041908,0.00016433,2]
[322896054,1713486640675,-157.041908,0.00016434,2]
[322896055,1713486640684,-157.041908,0.00016434,2]
[322896056,1713486640693,-157.041908,0.00016434,2]
[322896057,1713486640702,-157.041908,0.00016434,2]
[322896058,1713486640711,-157.041908,0.00016434,2]
[322896059,1713486640720,-157.041908,0.00016434,2]
[322896060,1713486640731,-157.041908,0.00016434,2]
[322896061,1713486640741,-157.041908,0.00016434,2]
[322896062,1713486640750,-157.041908,0.00016434,2]
[322896063,1713486640759,-157.041908,0.00016434,2]
[322896064,1713486640768,-157.041908,0.00016435,2]
[322896065,1713486640778,-157.041908,0.00016435,2]
[322896066,1713486640786,-157.041908,0.00016435,2]
[322896067,1713486640796,-157.041908,0.00016435,2]
[322896068,1713486640805,-157.041908,0.00016435,2]
[322896069,1713486640814,-157.041908,0.00016435,2]
[322896070,1713486640823,-157.041908,0.00016435,2]
[322896071,1713486640832,-157.041908,0.00016435,2]
[322896072,1713486640842,-157.041908,0.00016435,2]
[322896073,1713486640852,-157.041908,0.00016435,2]
[322896074,1713486640861,-157.041908,0.00016435,2]
[322896075,1713486640870,-255236.65878024,0.00016435,2]
[322896076,1713486640879,-157.041908,0.00016436,2]
[322896077,1713486640888,-157.041908,0.00016436,2]
[322896078,1713486640897,-157.041908,0.00016436,2]
[322896079,1713486640906,-157.041908,0.00016436,2]
[322896080,1713486640915,-157.041908,0.00016436,2]
[322896081,1713486640924,-157.041908,0.00016436,2]
[322896082,1713486640933,-157.041908,0.00016436,2]
[322896083,1713486640942,-157.041908,0.00016436,2]
[322896084,1713486640952,-157.041908,0.00016436,2]
[322896085,1713486640961,-157.041908,0.00016436,2]
[322896086,1713486640970,-157.041908,0.00016436,2]
[322896087,1713486640981,-2275.87779789,0.00016437,2]
[322896088,1713486640990,-364525.32042547,0.00016437,2]
[322896089,1713486640999,-650.67,0.00016438,2]
[322896090,1713486641008,-650.67,0.00016438,2]
[322896091,1713486641017,-650.67,0.00016438,2]
[322896092,1713486641026,-650.67,0.00016438,2]
[322896093,1713486641036,-650.67,0.00016438,2]
[322896094,1713486641045,-650.67,0.00016438,2]
[322896095,1713486641054,-650.67,0.00016438,2]
[322896096,1713486641063,-650.67,0.00016438,2]
[322896097,1713486641072,-650.67,0.00016438,2]
[322896098,1713486641081,-650.67,0.00016438,2]
[322896099,1713486641090,-650.67,0.00016438,2]
[322896100,1713486641099,-650.67,0.00016438,2]
[322896101,1713486641108,-650.67,0.00016438,2]
[322896102,1713486641117,-650.67,0.00016438,2]
[322896103,1713486641127,-650.67,0.00016438,2]
[322896104,1713486641136,-650.67,0.00016438,2]
[322896105,1713486641145,-650.67,0.00016438,2]
[322896106,1713486641154,-650.67,0.00016438,2]
[322896107,1713486641163,-650.67,0.00016438,2]
[322896108,1713486641173,-650.67,0.00016438,2]
[322896109,1713486641182,-650.67,0.00016438,2]
[322896110,1713486641191,-650.67,0.00016438,2]
[322896111,1713486641200,-650.67,0.00016438,2]
[322896112,1713486641210,-650.71,0.00016438,2]
[322896113,1713486641219,-2416.9,0.00016438,2]
[322896114,1713486641228,-2416.9,0.00016438,2]
[322896115,1713486641239,-2416.9,0.00016438,2]
[322896116,1713486641248,-2416.9,0.00016438,2]
[322896117,1713486641257,-2416.9,0.00016438,2]
[322896118,1713486641265,-2416.9,0.00016438,2]
[322896119,1713486641274,-2416.9,0.00016438,2]
[322896120,1713486641283,-2416.9,0.00016438,2]
[322896121,1713486641293,-2416.9,0.00016438,2]
[322896122,1713486641302,-2416.9,0.00016438,2]
[322896123,1713486641312,-2416.9,0.00016438,2]
[322896124,1713486641324,-2416.9,0.00016438,2]
[322896125,1713486641335,-2416.9,0.00016438,2]
[322896126,1713486641345,-2416.9,0.00016438,2]
[322896127,1713486641355,-2416.9,0.00016438,2]
[322896128,1713486641365,-2416.9,0.00016438,2]
[322896129,1713486641374,-500.0,0.00016438,2]
[322896130,1713486641382,-2416.9,0.00016438,2]
[322896131,1713486641393,-500.0,0.00016438,2]
[322896132,1713486641402,-2416.9,0.00016438,2]
[322896133,1713486641413,-500.0,0.00016438,2]